bitfinex/quotes_BTCUSD_20250825
["timestamp","ask_amount","ask_price","bid_price","bid_amount"]
[1756091935155,0.52749971,113740.0,113730.0,0.00014323]
[1756091937390,0.53982216,113740.0,113730.0,0.00014323]
[1756091937601,0.53982276,113740.0,113730.0,0.00014323]
[1756091938023,0.53158208,113740.0,113730.0,0.00014323]
[1756091938243,0.53982276,113740.0,113730.0,0.00014323]
[1756091938689,0.54126276,113740.0,113730.0,0.00014323]
[1756091940078,0.53982276,113740.0,113730.0,0.00014323]
[1756091940520,0.54126276,113740.0,113730.0,0.00014323]
[1756091940941,0.52750031,113740.0,113730.0,0.00014323]
[1756091942249,5.52860373,113740.0,113730.0,0.00014323]
[1756091942624,5.55377187,113740.0,113730.0,0.00014323]
[1756091943648,5.58121487,113740.0,113730.0,0.00014323]
[1756091944082,5.59497828,113740.0,113730.0,0.00014323]
[1756091944306,5.59597828,113740.0,113730.0,0.00014323]
[1756091944781,5.74769607,113740.0,113730.0,0.00014323]
[1756091945013,5.74151535,113740.0,113730.0,0.00014323]
[1756091945219,5.74769546,113740.0,113730.0,0.00014323]
[1756091946346,5.74151535,113740.0,113730.0,0.00014323]
[1756091946550,5.74769505,113740.0,113730.0,0.00014323]
[1756091947383,5.72870984,113740.0,113730.0,0.00014323]
[1756091948015,5.72726984,113740.0,113730.0,0.00014323]
[1756091948239,5.72108968,113740.0,113730.0,0.00014323]
[1756091951202,5.48450003,113740.0,113730.0,0.00014323]
[1756091951399,0.63592626,113740.0,113730.0,0.00536323]
[1756091951618,0.78564626,113740.0,113730.0,0.00536323]
[1756091951838,0.77188285,113740.0,113730.0,0.00536323]
[1756091954354,0.77386285,113740.0,113730.0,0.00536323]
[1756091954751,0.77188285,113740.0,113730.0,0.00536323]
[1756091955103,0.82340682,113740.0,113730.0,0.00536323]
[1756091955528,0.78564546,113740.0,113730.0,0.00536323]
[1756091955768,0.78762546,113740.0,113730.0,0.00536323]
[1756091956226,0.78762385,113740.0,113730.0,0.00536323]
[1756091957669,0.78564385,113740.0,113730.0,0.00536323]
[1756091959823,0.63592385,113740.0,113730.0,0.00536323]
[1756091960053,0.78564385,113740.0,113730.0,0.00536323]
[1756091962271,0.78564385,113740.0,113730.0,0.00327323]
[1756091962712,0.78708385,113740.0,113730.0,0.00014323]
[1756091964742,0.78708385,113740.0,113730.0,0.00536323]
[1756091965551,0.78564385,113740.0,113730.0,0.00536323]
[1756091965960,0.78762385,113740.0,113730.0,0.00014323]
[1756091966167,0.77938524,113740.0,113730.0,0.00014323]
[1756091966320,0.78763566,113740.0,113730.0,0.00014323]
[1756091969735,5.74773905,113740.0,113730.0,0.00014323]
[1756091969975,5.73397644,113740.0,113730.0,0.00014323]
[1756091970204,5.78931365,113740.0,113730.0,1e-08]
[1756091970450,5.75770795,113740.0,113730.0,1e-08]
[1756091973366,5.7714726,113740.0,113730.0,1e-08]
[1756091976127,5.77145816,113740.0,113730.0,1e-08]
[1756091976565,5.77145764,113740.0,113730.0,1e-08]
[1756091979126,6.02432259,113740.0,113730.0,1e-08]
[1756091979344,6.00305873,113740.0,113730.0,1e-08]
[1756091980177,5.97933183,113740.0,113730.0,1e-08]
[1756091981023,5.96556718,113740.0,113730.0,1e-08]
[1756091981225,5.96356718,113740.0,113730.0,1e-08]
[1756091981663,0.53333504,113710.0,113700.0,0.00313]
[1756091981891,5.50928439,113710.0,113700.0,0.00517]
[1756091982082,5.65900439,113710.0,113700.0,0.00517]
[1756091982752,5.50928439,113710.0,113700.0,0.00517]
[1756091982979,5.68545439,113710.0,113700.0,0.00517]
[1756091983942,5.68545439,113710.0,113700.0,0.00717]
[1756091985272,5.6992208,113710.0,113700.0,0.00717]
[1756091985952,5.7011908,113710.0,113700.0,0.002]
[1756091986171,5.72775471,113710.0,113700.0,0.002]
[1756091986640,5.72779217,113710.0,113700.0,0.002]
[1756091987154,0.17591696,113690.0,113680.0,0.00317]
[1756091987363,5.06789696,113690.0,113680.0,0.00521]
[1756091987590,4.91817696,113690.0,113680.0,0.00521]
[1756091987800,5.06789696,113690.0,113680.0,0.00521]
[1756091987989,5.08166466,113690.0,113680.0,0.00521]
[1756091988212,5.18598333,113690.0,113680.0,0.00521]
[1756091988423,5.64128108,113690.0,113680.0,0.00568667]
[1756091988632,5.64950808,113690.0,113680.0,0.00968667]
[1756091988840,5.64950808,113690.0,113680.0,0.01068667]
[1756091989248,5.49978808,113690.0,113680.0,0.00968667]
[1756091989516,5.64950808,113690.0,113680.0,0.00968667]
[1756091989934,5.64950808,113690.0,113680.0,0.00568667]
[1756091990243,5.68869309,113690.0,113680.0,0.00668667]
[1756091991938,5.67492539,113690.0,113680.0,0.00668667]
[1756091992497,5.67492539,113690.0,113680.0,0.00147667]
[1756091993166,5.67636539,113690.0,113680.0,0.00147667]
[1756091993417,5.69386704,113690.0,113680.0,0.00147667]
[1756091995186,5.70763683,113690.0,113680.0,0.00147667]
[1756091995811,5.55791683,113690.0,113680.0,0.00147667]
[1756091996018,5.70767087,113690.0,113680.0,0.00147667]
[1756091996268,5.70767087,113690.0,113680.0,0.00668667]
[1756091996483,5.70767153,113690.0,113680.0,0.00464667]
[1756091996691,5.70767153,113690.0,113680.0,0.00147667]
[1756091997383,5.71383889,113690.0,113680.0,0.00147667]
[1756091997609,5.71395889,113690.0,113680.0,0.00147667]
[1756091998036,5.71396034,113690.0,113680.0,0.00147667]
[1756091998249,5.67477533,113690.0,113680.0,0.00464667]
[1756091998477,5.67481533,113690.0,113680.0,0.00464667]
[1756091999339,5.67481679,113690.0,113680.0,0.00464667]
[1756091999980,5.77625679,113690.0,113680.0,0.00147667]
[1756092000611,5.62489679,113690.0,113680.0,0.00147667]
[1756092000813,5.77473679,113690.0,113680.0,0.00147667]
[1756092001041,5.77473679,113690.0,113680.0,0.00047667]
[1756092002090,5.67473679,113690.0,113680.0,0.00047667]
[1756092002342,5.77473679,113690.0,113680.0,0.00047667]
[1756092003658,5.67269679,113690.0,113680.0,0.00568667]
[1756092003874,5.52293679,113690.0,113680.0,0.00568667]
[1756092004078,5.67273679,113690.0,113680.0,0.00568667]
[1756092004717,5.66648587,113690.0,113680.0,0.00568667]
[1756092004948,5.67471394,113690.0,113680.0,0.00568667]
[1756092005397,5.66854288,113690.0,113680.0,0.00047667]
[1756092005611,5.67471392,113690.0,113680.0,0.00047667]
[1756092006068,5.67274392,113690.0,113680.0,0.00568667]
[1756092006593,5.43607427,113690.0,113680.0,0.00568667]
[1756092006806,5.58671427,113690.0,113680.0,0.00568667]
[1756092007510,5.43607427,113690.0,113680.0,0.00568667]
[1756092007734,0.21059802,113690.0,113680.0,0.00568667]
[1756092007961,0.36135802,113690.0,113680.0,0.00568667]
[1756092008194,0.75508902,113690.0,113680.0,0.00568667]
[1756092008640,0.70140174,113690.0,113680.0,0.00568667]
[1756092010780,0.70140174,113690.0,113680.0,0.00668667]
[1756092014255,0.71517029,113690.0,113680.0,0.00668667]
[1756092014734,0.71518184,113690.0,113680.0,0.00668667]
[1756092016911,0.71716184,113690.0,113680.0,0.00668667]
[1756092017377,0.71518184,113690.0,113680.0,0.00668667]
[1756092017818,0.77959748,113690.0,113680.0,0.00668667]
[1756092018712,0.71514184,113690.0,113680.0,0.00668667]
[1756092020021,0.75519067,113690.0,113680.0,0.00668667]
[1756092022058,0.75511067,113690.0,113680.0,0.00668667]
[1756092023123,0.75507067,113690.0,113680.0,0.00668667]
[1756092023876,0.60443067,113690.0,113680.0,0.00668667]
[1756092024379,0.75503067,113690.0,113680.0,0.00659667]
[1756092024568,0.74678734,113690.0,113680.0,0.00659667]
[1756092024733,0.75503106,113690.0,113680.0,0.00659667]
[1756092025414,0.60443106,113690.0,113680.0,0.00659667]
[1756092025580,0.75503106,113690.0,113680.0,0.00659667]
[1756092027759,0.60443106,113690.0,113680.0,0.00659667]
[1756092027887,0.75503106,113690.0,113680.0,0.00659667]
[1756092028130,0.74678734,113690.0,113680.0,0.00659667]
[1756092030402,0.59618734,113690.0,113680.0,0.00659667]
[1756092030634,0.74670734,113690.0,113680.0,0.00659667]
[1756092031054,0.59618734,113690.0,113680.0,0.00659667]
[1756092031255,0.72021434,113690.0,113680.0,0.00659667]
[1756092032436,0.72017434,113690.0,113680.0,0.00659667]
[1756092032656,0.56973434,113690.0,113680.0,0.00659667]
[1756092032910,0.72017434,113690.0,113680.0,0.00659667]
[1756092033229,0.72029434,113690.0,113680.0,0.00659667]
[1756092035856,0.53328182,113690.0,113680.0,0.00659667]
[1756092036157,0.70919878,113690.0,113680.0,0.00659667]
[1756092037124,0.55863878,113690.0,113680.0,0.00659667]
[1756092037345,0.69527023,113690.0,113680.0,0.00659667]
[1756092038176,0.6552214,113690.0,113680.0,0.00659667]
[1756092040677,0.67096927,113690.0,113680.0,0.00659667]
[1756092040870,0.6552214,113690.0,113680.0,0.00659667]
[1756092042422,0.6550214,113690.0,113680.0,0.00659667]
[1756092043890,0.5048214,113690.0,113680.0,0.00659667]
[1756092044095,0.32890444,113690.0,113680.0,0.00659667]
[1756092044340,0.49279209,113690.0,113680.0,0.00659667]
[1756092044759,0.34267209,113690.0,113680.0,0.00659667]
[1756092044975,0.34267209,113690.0,113680.0,0.09568057]
[1756092045614,0.34267209,113690.0,113680.0,0.09468057]
[1756092045821,0.01376765,113690.0,113680.0,0.09768057]
[1756092046031,0.59852,113700.0,113680.0,0.09768057]
[1756092046234,0.59852,113700.0,113680.0,0.09472057]
[1756092046457,0.93852,113700.0,113690.0,0.00294]
[1756092046676,0.93852,113700.0,113690.0,0.00502]
[1756092046890,0.7884,113700.0,113690.0,0.00502]
[1756092047166,0.93848,113700.0,113690.0,0.00502]
[1756092047798,0.7884,113700.0,113690.0,0.00602]
[1756092048030,0.93848,113700.0,113690.0,0.00602]
[1756092048667,0.93848,113700.0,113690.0,0.00802]
[1756092049293,0.7884,113700.0,113690.0,0.00802]
[1756092049509,0.93848,113700.0,113690.0,0.00802]
[1756092052600,1.11438149,113700.0,113690.0,0.00802]
[1756092053684,0.66598149,113700.0,113690.0,0.00802]
[1756092055113,0.49008,113700.0,113690.0,0.00802]
[1756092055620,0.48996,113700.0,113690.0,0.00802]
[1756092056282,0.42140653,113710.0,113690.0,0.09490475]
[1756092056492,0.6795328,113710.0,113690.0,0.09196475]
[1756092056703,0.50364653,113710.0,113700.0,0.00294]
[1756092056926,0.50364653,113710.0,113700.0,0.00502]
[1756092057823,0.35376653,113710.0,113700.0,0.00502]
[1756092058042,0.50364653,113710.0,113700.0,0.00502]
[1756092059108,0.48988,113710.0,113700.0,0.00502]
[1756092059325,0.48988,113710.0,113700.0,0.00802]
[1756092059546,0.34,113710.0,113700.0,0.09490475]
[1756092059761,0.34,113710.0,113700.0,0.09690475]
[1756092060682,0.70071352,113730.0,113700.0,0.09690475]
[1756092060891,0.34,113720.0,113700.0,0.09396475]
[1756092061111,0.48984,113720.0,113710.0,0.00294]
[1756092061329,0.34,113720.0,113710.0,0.00502]
[1756092062660,0.34,113720.0,113710.0,0.00702]
[1756092063010,0.34,113720.0,113710.0,0.09390475]
[1756092063667,0.34,113720.0,113710.0,0.09490475]
[1756092063883,0.18920137,113730.0,113710.0,0.09490475]
[1756092064091,0.52920137,113730.0,113710.0,0.09196475]
[1756092064307,0.18920137,113730.0,113720.0,0.00294]
[1756092064537,0.37936137,113730.0,113720.0,0.00294]
[1756092064756,0.37936137,113730.0,113720.0,0.00502]
[1756092064979,0.34,113730.0,113720.0,0.00502]
[1756092065654,0.34,113730.0,113720.0,0.00549667]
[1756092066088,0.34,113730.0,113720.0,0.09238142]
[1756092066358,0.34198,113730.0,113720.0,0.09238142]
[1756092067442,0.34198,113730.0,113720.0,0.09438142]
[1756092067670,0.34198,113730.0,113720.0,0.09538142]
[1756092068561,0.34,113730.0,113720.0,0.09538142]
[1756092069011,0.20316221,113740.0,113720.0,0.09538142]
[1756092069263,0.54316221,113740.0,113720.0,0.09538142]
[1756092069520,0.54316221,113740.0,113720.0,0.12207842]
[1756092069981,0.54316221,113740.0,113720.0,0.12007842]
[1756092070277,0.71900359,113740.0,113720.0,0.12007842]
[1756092070924,0.71900359,113740.0,113720.0,0.12107842]
[1756092071194,0.70524088,113740.0,113720.0,0.12107842]
[1756092071430,0.5293995,113740.0,113730.0,0.0032]
[1756092071650,0.5313795,113740.0,113730.0,0.0032]
[1756092071847,0.5313795,113740.0,113720.0,0.11899842]
[1756092072055,0.5313795,113740.0,113720.0,0.11579842]
[1756092072263,0.5313795,113740.0,113730.0,0.0032]
[1756092072705,0.70721913,113740.0,113720.0,0.11899842]
[1756092072918,0.70721913,113740.0,113720.0,0.11799842]
[1756092073341,0.70721913,113740.0,113730.0,0.001]
[1756092073784,0.70721913,113740.0,113720.0,0.11699842]
[1756092074002,0.5313795,113740.0,113730.0,0.00625]
[1756092074878,0.5313795,113740.0,113730.0,0.00525]
[1756092075129,0.5313795,113740.0,113730.0,0.0032]
[1756092075345,0.3815795,113740.0,113730.0,0.00525]
[1756092076075,0.3815795,113740.0,113720.0,0.1191968]
[1756092076291,0.3815795,113740.0,113730.0,0.0032]
[1756092076737,0.3953407,113740.0,113730.0,0.0042]
[1756092077370,0.3953407,113740.0,113730.0,0.0052]
[1756092078452,0.3557412,113740.0,113730.0,0.0052]
[1756092078674,0.3557412,113740.0,113730.0,0.00725]
[1756092079584,0.3557412,113740.0,113730.0,0.002]
[1756092080008,0.3537612,113740.0,113730.0,0.00725]
[1756092080673,0.3537612,113740.0,113730.0,0.09413475]
[1756092080879,0.35361436,113740.0,113730.0,0.09633293]
[1756092081313,0.35361436,113740.0,113730.0,0.09413475]
[1756092081782,0.35361436,113740.0,113730.0,0.09633293]
[1756092082825,0.35361436,113740.0,113730.0,0.09413475]
[1756092083764,0.35361436,113740.0,113730.0,0.09633293]
[1756092085469,0.36184815,113740.0,113730.0,0.09108293]
[1756092085495,0.35505436,113740.0,113730.0,0.09108293]
[1756092086326,0.36329307,113740.0,113730.0,0.09428293]
[1756092086733,0.36329307,113740.0,113730.0,0.09633293]
[1756092088735,0.5391327,113740.0,113730.0,0.08888475]
[1756092091437,0.36329307,113740.0,113730.0,0.08888475]
[1756092091648,0.36329307,113740.0,113730.0,0.09428293]
[1756092092060,0.36329307,113740.0,113730.0,0.09633293]
[1756092092693,0.36329307,113740.0,113730.0,0.09108293]
[1756092092913,0.5391327,113740.0,113730.0,0.08888475]
[1756092093119,0.5405727,113740.0,113730.0,0.08888475]
[1756092093331,0.5391327,113740.0,113730.0,0.08888475]
[1756092094595,0.6888527,113740.0,113730.0,0.08888475]
[1756092096080,0.34899954,113740.0,113730.0,0.08888475]
[1756092096294,0.34901402,113740.0,113730.0,0.08888475]
[1756092096762,0.34901407,113740.0,113730.0,0.10651475]
[1756092096964,0.34901407,113740.0,113730.0,0.08888475]
[1756092097886,0.34901407,113740.0,113730.0,0.09208475]
[1756092098750,0.68901407,113740.0,113730.0,0.08888475]
[1756092099618,0.68901407,113740.0,113730.0,0.09388475]
[1756092099619,0.36345444,113740.0,113730.0,0.09388475]
[1756092099845,0.51317444,113740.0,113730.0,0.09388475]
[1756092099976,0.36201444,113740.0,113730.0,0.09608293]
[1756092100676,0.65950984,113760.0,113730.0,0.09608293]
[1756092100677,0.63307384,113760.0,113730.0,0.09828111]
[1756092100893,0.34,113750.0,113740.0,0.23954475]
[1756092101093,0.34825578,113750.0,113740.0,0.24160475]
[1756092103563,0.34,113750.0,113740.0,0.24260475]
[1756092104005,0.34,113750.0,113740.0,0.27003675]
[1756092106074,0.34,113750.0,113740.0,0.12031675]
[1756092106293,0.34,113750.0,113740.0,0.27003675]
[1756092106505,0.34198,113750.0,113740.0,0.27003675]
[1756092107775,0.34198,113750.0,113740.0,0.12031675]
[1756092107994,0.34198,113750.0,113740.0,0.26999675]
[1756092108494,0.34,113750.0,113740.0,0.26999675]
[1756092108710,0.34198,113750.0,113740.0,0.26999675]
[1756092110720,0.34198,113750.0,113740.0,0.26793675]
[1756092110949,0.34,113750.0,113740.0,0.26999675]
[1756092111879,0.35375934,113760.0,113740.0,0.26999675]
[1756092112130,0.2968103,113780.0,113750.0,0.0051378]
[1756092112363,0.14968,113770.0,113760.0,0.08982475]
[1756092112581,0.14968,113770.0,113760.0,0.24156475]
[1756092112582,0.34,113770.0,113760.0,0.24156475]
[1756092112803,0.4200593,113780.0,113760.0,0.24156475]
[1756092113043,0.34,113770.0,113760.0,0.24156475]
[1756092113269,0.34198,113770.0,113760.0,0.26799275]
[1756092113480,0.51777326,113770.0,113760.0,0.26799275]
[1756092113693,0.51782093,113770.0,113760.0,0.26799275]
[1756092113905,0.51782093,113770.0,113760.0,0.26593275]
[1756092114548,0.51782093,113770.0,113760.0,0.26693275]
[1756092114866,0.51782093,113770.0,113760.0,0.11431275]
[1756092115080,0.66750093,113770.0,113760.0,0.11431275]
[1756092116003,0.66750093,113770.0,113760.0,0.11531275]
[1756092116439,0.49170767,113770.0,113760.0,0.11825275]
[1756092116815,0.66750093,113770.0,113760.0,0.11825275]
[1756092117508,0.66750093,113770.0,113760.0,0.11531275]
[1756092119396,0.66750093,113770.0,113760.0,0.11825275]
[1756092119837,0.66750093,113770.0,113760.0,0.11531275]
[1756092120304,0.75581058,113770.0,113760.0,0.002]
[1756092120783,0.79047437,113770.0,113760.0,0.002]
[1756092121039,0.70360472,113770.0,113760.0,0.002]
[1756092121268,0.70360472,113770.0,113760.0,0.001]
[1756092121494,0.70190472,113770.0,113760.0,0.001]
[1756092122590,0.17583114,113750.0,113730.0,0.179012]
[1756092122798,0.17583114,113750.0,113740.0,0.08688475]
[1756092123017,0.17781114,113750.0,113740.0,0.08688475]
[1756092123232,0.17781114,113750.0,113730.0,0.029372]
[1756092123233,0.17583963,113740.0,113730.0,0.029372]
[1756092123454,0.17583963,113740.0,113730.0,0.08688475]
[1756092123455,0.51781963,113740.0,113730.0,0.08688475]
[1756092123823,0.51585509,113730.0,113720.0,0.0676]
[1756092123909,0.51585509,113730.0,113720.0,0.026436]
[1756092124134,0.51783509,113730.0,113720.0,0.08688475]
[1756092124354,0.17587055,113720.0,113700.0,0.07054]
[1756092124607,0.17587055,113720.0,113710.0,0.11332375]
[1756092124819,0.51785055,113720.0,113710.0,0.08688475]
[1756092125270,0.51785055,113720.0,113710.0,0.08736142]
[1756092125916,0.51785055,113720.0,113710.0,0.08836142]
[1756092126607,0.51785055,113720.0,113710.0,0.00147667]
[1756092126822,0.51929055,113720.0,113710.0,0.00247667]
[1756092127275,0.51929055,113720.0,113710.0,0.00147667]
[1756092127517,0.53305412,113720.0,113710.0,0.00247667]
[1756092127940,0.53161412,113720.0,113710.0,0.00247667]
[1756092129930,0.68121412,113720.0,113710.0,0.00247667]
[1756092130689,0.68121412,113720.0,113710.0,0.50247667]
[1756092131276,0.53161412,113720.0,113710.0,0.50247667]
[1756092131474,0.68125412,113720.0,113710.0,0.50247667]
[1756092131931,0.76956377,113720.0,113710.0,0.50247667]
[1756092132136,5.41119055,113720.0,113710.0,0.50247667]
[1756092133188,5.40975055,113720.0,113710.0,0.50247667]
[1756092135277,5.40975055,113720.0,113710.0,0.00247667]
[1756092135890,5.26011055,113720.0,113710.0,0.00247667]
[1756092136096,5.49172604,113720.0,113710.0,0.00247667]
[1756092141989,5.34208604,113720.0,113710.0,0.00247667]
[1756092142202,5.49172604,113720.0,113710.0,0.00247667]
[1756092142887,5.40975055,113720.0,113710.0,0.00247667]
[1756092144258,5.26011055,113720.0,113710.0,0.00247667]
[1756092144446,5.40971055,113720.0,113710.0,0.00247667]
[1756092144651,0.51785055,113720.0,113710.0,0.00771667]
[1756092144859,0.66547055,113720.0,113710.0,0.00771667]
[1756092145069,0.51587055,113720.0,113710.0,0.00771667]
[1756092145272,0.66547055,113720.0,113710.0,0.00771667]
[1756092145884,0.34,113720.0,113710.0,0.00771667]
[1756092146087,0.34,113720.0,113710.0,0.09460142]
[1756092146801,0.01376343,113730.0,113710.0,0.27063942]
[1756092147016,0.01376343,113730.0,113720.0,0.09219313]
[1756092147223,0.01376343,113730.0,113720.0,0.09432313]
[1756092147435,0.35376343,113730.0,113720.0,0.09432313]
[1756092147877,0.35376343,113730.0,113720.0,0.09212475]
[1756092148500,0.52961852,113730.0,113720.0,0.09212475]
[1756092149814,0.52961852,113730.0,113720.0,0.08688475]
[1756092150017,0.52961852,113730.0,113720.0,0.09212475]
[1756092150738,0.53105852,113730.0,113720.0,0.09212475]
[1756092150950,0.51729509,113730.0,113720.0,0.09212475]
[1756092151365,0.34,113730.0,113720.0,0.09212475]
[1756092154682,0.34,113730.0,113720.0,0.11856275]
[1756092155368,0.51585509,113730.0,113720.0,0.11856275]
[1756092155585,0.51783509,113730.0,113720.0,0.11332275]
[1756092155798,0.66739509,113730.0,113720.0,0.11332275]
[1756092156451,0.66739509,113730.0,113720.0,0.11856275]
[1756092156673,0.66739509,113730.0,113720.0,0.11332275]
[1756092156893,0.17587055,113720.0,113710.0,0.00047667]
[1756092157105,0.17587055,113720.0,113710.0,0.11380042]
[1756092157674,0.51587055,113720.0,113710.0,0.11691042]
[1756092158088,0.51587055,113720.0,113710.0,0.11791042]
[1756092158296,0.52963338,113720.0,113710.0,0.11791042]
[1756092158497,0.52963338,113720.0,113710.0,0.00147667]
[1756092158893,0.52963338,113720.0,113710.0,0.00247667]
[1756092161072,0.52963338,113720.0,113710.0,0.00567667]
[1756092161284,0.52963338,113720.0,113710.0,0.00767667]
[1756092161989,0.51587055,113720.0,113710.0,0.00767667]
[1756092165859,0.51785055,113720.0,113710.0,0.00767667]
[1756092168060,0.51785055,113720.0,113710.0,0.00567667]
[1756092168280,0.51785055,113720.0,113710.0,0.00247667]
[1756092169147,0.51785055,113720.0,113710.0,0.00567667]
[1756092169392,0.51785055,113720.0,113710.0,0.00767667]
[1756092172066,0.51785055,113720.0,113710.0,0.00247667]
[1756092172523,0.51785055,113720.0,113710.0,0.00567667]
[1756092172962,0.51785055,113720.0,113710.0,0.00247667]
[1756092175417,0.51785055,113720.0,113710.0,0.10247667]
[1756092180516,0.51801946,113720.0,113710.0,0.10247667]
[1756092181011,0.56480766,113720.0,113710.0,0.10247667]
[1756092181231,5.31531539,113720.0,113710.0,0.00247667]
[1756092181921,5.44609516,113720.0,113710.0,0.00247667]
[1756092182115,5.47128269,113720.0,113710.0,0.00247667]
[1756092182334,5.47128269,113720.0,113710.0,0.00147667]
[1756092182759,5.62080269,113720.0,113710.0,0.00147667]
[1756092182967,5.62080269,113720.0,113710.0,0.00047667]
[1756092184050,5.63656947,113720.0,113710.0,0.00047667]
[1756092184549,5.38976917,113720.0,113710.0,0.00047667]
[1756092184769,5.56863972,113720.0,113710.0,0.00047667]
[1756092185885,5.41911972,113720.0,113710.0,0.00047667]
[1756092186095,5.56863972,113720.0,113710.0,0.00047667]
[1756092187121,5.56861764,113720.0,113710.0,0.00047667]
[1756092187328,5.54961665,113720.0,113710.0,0.00047667]
[1756092189609,5.56858125,113720.0,113710.0,0.00047667]
[1756092190228,5.56857369,113720.0,113710.0,0.00047667]
[1756092190438,5.56034216,113720.0,113710.0,0.00047667]
[1756092190652,5.56857157,113720.0,113710.0,0.00047667]
[1756092191064,0.51591696,113690.0,113680.0,0.0032]
[1756092191264,0.66543696,113690.0,113680.0,0.10536775]
[1756092191892,0.6792043,113690.0,113680.0,0.10536775]
[1756092192348,0.69095693,113690.0,113680.0,0.10536775]
[1756092192565,0.69095693,113690.0,113680.0,0.10736775]
[1756092192945,5.43321693,113690.0,113680.0,0.10736775]
[1756092193153,5.43321693,113690.0,113680.0,0.00736775]
[1756092193381,5.43518693,113690.0,113680.0,0.00736775]
[1756092193968,5.43518693,113690.0,113680.0,0.00424775]
[1756092194272,5.52205658,113690.0,113680.0,0.00536775]
[1756092194928,5.52205658,113690.0,113680.0,4.775e-05]
[1756092195090,5.62639035,113690.0,113680.0,4.775e-05]
[1756092195429,5.61262301,113690.0,113680.0,4.775e-05]
[1756092195836,5.63907701,113690.0,113680.0,4.775e-05]
[1756092196245,5.64007701,113690.0,113680.0,4.775e-05]
[1756092196858,5.55220736,113690.0,113680.0,4.775e-05]
[1756092197061,5.55420736,113690.0,113680.0,4.775e-05]
[1756092197630,5.55420736,113690.0,113680.0,0.00321775]
[1756092198248,5.55420736,113690.0,113680.0,4.775e-05]
[1756092198627,6.00260736,113690.0,113680.0,4.775e-05]
[1756092198843,6.06842123,113690.0,113680.0,4.775e-05]
[1756092200527,6.06986123,113690.0,113680.0,4.775e-05]
[1756092200746,6.07808297,113690.0,113680.0,4.775e-05]
[1756092200965,6.06431395,113690.0,113680.0,4.775e-05]
[1756092201174,5.61591395,113690.0,113680.0,4.775e-05]
[1756092201593,5.67383273,113690.0,113680.0,4.775e-05]
[1756092201806,5.6799991,113690.0,113680.0,4.775e-05]
[1756092202460,5.6789991,113690.0,113680.0,4.775e-05]
[1756092202665,5.70374448,113690.0,113680.0,4.775e-05]
[1756092203306,0.53341241,113660.0,113650.0,0.00317]
[1756092203521,0.68491241,113660.0,113650.0,0.10541619]
[1756092203727,5.42717241,113660.0,113650.0,0.10541619]
[1756092204159,5.46740285,113660.0,113650.0,0.10541619]
[1756092204374,5.5542725,113660.0,113650.0,0.10541619]
[1756092204582,5.5522925,113660.0,113650.0,0.10541619]
[1756092204798,5.5522925,113660.0,113650.0,0.10641619]
[1756092206179,5.5522925,113660.0,113650.0,0.00741619]
[1756092206601,5.59125797,113660.0,113650.0,0.00741619]
[1756092207048,5.59125797,113660.0,113650.0,0.00641619]
[1756092207605,5.59270797,113660.0,113650.0,0.00012619]
[1756092207834,5.67959272,113660.0,113650.0,0.00012619]
[1756092208052,5.67959272,113660.0,113650.0,0.00112619]
[1756092209195,5.53007272,113660.0,113650.0,0.00012619]
[1756092209406,5.6878236,113660.0,113650.0,0.00012619]
[1756092210079,5.6888236,113660.0,113650.0,0.00012619]
[1756092210294,5.68059272,113660.0,113650.0,0.00012619]
[1756092210506,5.68982158,113660.0,113650.0,0.00012619]
[1756092210955,5.67604853,113660.0,113650.0,0.00012619]
[1756092211652,5.67748853,113660.0,113650.0,0.00012619]
[1756092212114,5.67604853,113660.0,113650.0,0.00012619]
[1756092213594,6.12444853,113660.0,113650.0,0.00012619]
[1756092214022,6.1382213,113660.0,113650.0,0.00012619]
[1756092214975,6.1396613,113660.0,113650.0,0.00012619]
[1756092215825,6.1382213,113660.0,113650.0,0.00012619]
[1756092216888,6.12999405,113660.0,113650.0,0.00012619]
[1756092217103,6.13821846,113660.0,113650.0,0.00012619]
[1756092220295,6.13822105,113660.0,113650.0,0.00012619]
[1756092221079,6.15717953,113660.0,113650.0,0.00012619]
[1756092223206,6.16335433,113660.0,113650.0,0.00012619]
[1756092225331,5.71495433,113660.0,113650.0,0.00012619]
[1756092225755,5.71549433,113660.0,113650.0,0.00012619]
[1756092225972,5.70172156,113660.0,113650.0,0.00012619]
[1756092226168,5.70118156,113660.0,113650.0,0.00012619]
[1756092228500,5.72491539,113660.0,113650.0,0.00326619]
[1756092228719,5.72491539,113660.0,113650.0,0.00012619]
[1756092229371,5.7386892,113660.0,113650.0,0.00012619]
[1756092229626,5.7386892,113660.0,113650.0,0.00326619]
[1756092230127,5.71495537,113660.0,113650.0,0.00326619]
[1756092230342,5.73871651,113660.0,113650.0,0.00012619]
[1756092230993,5.7249427,113660.0,113650.0,0.00012619]
[1756092231437,5.7249427,113660.0,113650.0,0.00326619]
[1756092233601,5.7249427,113660.0,113650.0,0.00012619]
[1756092234214,5.73871622,113660.0,113650.0,0.00012619]
[1756092240045,5.73047047,113660.0,113650.0,0.00012619]
[1756092240255,5.73873677,113660.0,113650.0,0.00012619]
[1756092240673,5.73254365,113660.0,113650.0,0.00012619]
[1756092240886,5.738737,113660.0,113650.0,0.00012619]
[1756092241099,5.73873731,113660.0,113650.0,0.00012619]
[1756092242797,5.73873731,113660.0,113650.0,0.00326619]
[1756092243212,5.73873873,113660.0,113650.0,0.00326619]
[1756092243434,5.73874084,113660.0,113650.0,0.00326619]
[1756092244914,5.73887553,113660.0,113650.0,0.00326619]
[1756092249190,5.73888045,113660.0,113650.0,0.00326619]
[1756092250337,5.73888045,113660.0,113650.0,0.00333619]
[1756092250555,5.73888084,113660.0,113650.0,0.00333619]
[1756092251244,5.73888084,113660.0,113650.0,0.00012619]
[1756092252558,5.73888084,113660.0,113640.0,0.00361]
[1756092252559,0.51597888,113650.0,113640.0,0.0004]
[1756092252770,5.63877214,113650.0,113640.0,0.0004]
[1756092253032,6.08915214,113650.0,113640.0,0.0004]
[1756092253450,6.10929099,113650.0,113640.0,0.0004]
[1756092254316,6.11129099,113650.0,113640.0,0.0004]
[1756092254742,5.96181099,113650.0,113640.0,0.0004]
[1756092254961,6.10931099,113650.0,113640.0,0.00577]
[1756092255173,6.08550592,113650.0,113640.0,0.00577]
[1756092255406,6.15318592,113650.0,113640.0,0.00577]
[1756092255833,6.15318284,113650.0,113640.0,0.00577]
[1756092256054,6.06631319,113650.0,113640.0,0.00577]
[1756092256272,6.06731319,113650.0,113640.0,0.00577]
[1756092259208,6.06731019,113650.0,113640.0,0.00577]
[1756092259614,6.05078605,113650.0,113640.0,0.00577]
[1756092259826,6.15417959,113650.0,113640.0,0.00577]
[1756092260042,6.15417961,113650.0,113640.0,0.00577]
[1756092262477,6.15615961,113650.0,113640.0,0.0004]
[1756092262664,6.15615961,113650.0,113640.0,0.00361]
[1756092263858,6.15615961,113650.0,113640.0,0.0004]
[1756092264066,6.17996468,113650.0,113640.0,0.0004]